bitfinex-derivatives/quotes_ETHF0:USTF0_20250912
["timestamp","ask_amount","ask_price","bid_price","bid_amount"]
[1757636309792,3.2078,4454.8,4454.7,1.68660993]
[1757636309981,3.4195,4454.8,4454.7,1.68660993]
[1757636310181,3.7207,4454.8,4454.7,0.7211]
[1757636311387,3.9166,4454.8,4454.7,0.7211]
[1757636311980,3.2078,4455.3,4454.8,0.3126]
[1757636312281,3.7207,4455.3,4455.2,1.68660993]
[1757636312586,0.7088,4455.3,4455.2,0.7211]
[1757636313786,0.2117,4455.3,4455.2,0.7211]
[1757636314881,0.4076,4455.3,4455.2,0.7211]
[1757636315986,0.95883556,4455.3,4455.2,0.7211]
[1757636316184,0.4076,4455.3,4455.2,0.7211]
[1757636316386,0.9589749,4455.3,4455.2,0.7211]
[1757636316590,0.7630749,4455.3,4455.2,0.7211]
[1757636316780,0.5292,4455.6,4455.2,0.4085]
[1757636316976,0.2117,4455.4,4455.3,0.4085]
[1757636317182,0.76308275,4455.4,4455.3,0.7211]
[1757636317687,0.2117,4455.4,4455.3,0.7211]
[1757636318290,0.5129,4455.4,4455.3,0.7211]
[1757636318594,0.5129,4455.4,4454.9,41.028]
[1757636318595,1.26030622,4455.4,4454.9,41.028]
[1757636318794,0.7088,4455.0,4454.9,41.3406]
[1757636319185,0.7088,4455.0,4454.9,41.1126]
[1757636319488,0.7088,4455.0,4454.9,0.5231]
[1757636320597,1.26023506,4455.0,4454.9,0.7211]
[1757636320787,0.95903506,4455.0,4454.9,0.7211]
[1757636321894,1.26023506,4455.0,4454.9,0.7211]
[1757636322688,0.76313506,4455.0,4454.9,0.7211]
[1757636324293,1.26023506,4455.0,4454.9,0.7211]
[1757636324497,1.37713506,4455.0,4454.2,3.2078]
[1757636324807,0.3012,4454.6,4454.4,0.96550993]
[1757636325001,0.5129,4454.6,4454.5,0.8412]
[1757636326300,3.2078,4454.7,4454.5,0.8412]
[1757636326598,3.4195,4454.7,4454.6,0.7211]
[1757636326798,3.97089085,4454.7,4454.6,0.7211]
[1757636327299,4.46799085,4454.7,4454.6,0.7211]
[1757636330897,4.46799085,4454.7,4454.6,0.5231]
[1757636331091,4.46799085,4454.7,4454.6,0.7211]
[1757636334199,3.97089085,4454.7,4454.6,0.7211]
[1757636334401,0.2117,4455.1,4455.0,0.1201]
[1757636334599,1.06468081,4455.1,4455.0,0.8412]
[1757636334905,1.26058081,4455.1,4455.0,0.8412]
[1757636335597,1.26058081,4455.1,4455.0,0.7211]
[1757636335899,0.4076,4454.7,4454.6,0.9491]
[1757636336103,0.7088,4454.7,4454.6,0.9491]
[1757636336303,0.7088,4454.7,4454.6,0.7211]
[1757636336505,0.7088,4454.7,4454.6,0.5231]
[1757636340203,0.2978,4455.1,4454.6,0.7211]
[1757636340501,3.2078,4455.2,4455.1,0.725]
[1757636340705,0.9464,4455.6,4455.5,0.8451]
[1757636341001,1.49838667,4455.6,4455.5,0.725]
[1757636341807,1.49838667,4455.6,4455.5,0.8451]
[1757636342310,1.49838667,4455.6,4455.5,0.725]
[1757636343312,1.49838667,4455.6,4455.5,0.8451]
[1757636345208,0.9464,4455.6,4455.5,0.8451]
[1757636346006,0.6486,4455.6,4455.3,1.27850993]
[1757636346210,0.7184,4455.4,4455.3,1.47900993]
[1757636346408,0.7184,4455.4,4455.0,3.2078]
[1757636346409,0.2978,4455.3,4455.0,3.2078]
[1757636346604,0.7184,4454.8,4454.7,0.5135]
[1757636346903,0.7184,4454.8,4454.5,0.1201]
[1757636346904,0.7184,4454.8,4454.4,0.96550993]
[1757636347215,0.7184,4454.8,4454.1,1.91850993]
[1757636347216,0.4206,4454.2,4454.1,1.91850993]
[1757636347404,0.7184,4454.2,4454.1,2.14300993]
[1757636347609,0.7184,4454.2,4454.1,1.91850993]
[1757636349808,3.2078,4454.7,4454.5,0.1201]
[1757636350014,0.228,4455.3,4454.6,0.725]
[1757636350308,0.7184,4455.1,4455.0,0.725]
[1757636350508,0.7184,4455.1,4454.6,0.313]
[1757636350713,0.7184,4454.7,4454.6,1.47900993]
[1757636350907,0.4206,4454.7,4454.6,1.69050993]
[1757636351412,0.7365,4455.4,4455.3,0.725]
[1757636351616,0.76229128,4455.4,4455.3,1.69050993]
[1757636351914,0.2107,4455.4,4455.3,0.725]
[1757636352114,0.2107,4455.4,4455.3,1.69050993]
[1757636353914,0.7184,4455.4,4455.3,1.69050993]
[1757636354603,1.26990352,4455.4,4455.3,0.725]
[1757636355207,0.7184,4456.4,4456.3,0.2005]
[1757636355511,1.2699193,4456.4,4456.3,0.5135]
[1757636355915,1.2699193,4456.4,4456.3,0.2005]
[1757636356509,1.2699193,4456.4,4456.3,0.725]
[1757636359916,0.4202,4456.0,4455.9,40.8]
[1757636360118,4.17922892,4456.0,4455.9,40.8]
[1757636360619,0.7184,4455.7,4455.6,0.725]
[1757636361820,0.7184,4455.7,4455.6,0.5135]
[1757636366524,0.2978,4455.6,4455.3,0.313]
[1757636366718,0.7184,4455.4,4455.3,0.5135]
[1757636367325,0.7184,4455.4,4454.8,40.8]
[1757636367326,0.7184,4454.9,4454.8,0.5135]
[1757636369625,0.228,4455.1,4455.0,0.5267]
[1757636369829,0.7205,4455.1,4455.0,0.8364]
[1757636370027,1.27187218,4455.1,4455.0,0.8364]
[1757636370216,1.47167218,4455.1,4455.0,0.7148]
[1757636370523,0.9203,4455.1,4455.0,0.7148]
[1757636370828,1.47162951,4455.1,4455.0,0.2043]
[1757636371023,0.9203,4455.1,4455.0,0.514]
[1757636373426,0.9203,4455.1,4455.0,0.7148]
[1757636373623,3.2078,4455.4,4455.1,0.3097]
[1757636373817,3.4358,4455.4,4455.3,0.3097]
[1757636374019,4.18503597,4455.4,4455.3,0.7148]
[1757636374821,4.47953597,4455.4,4455.3,0.7148]
[1757636375022,4.67933597,4455.4,4455.3,0.7148]
[1757636375223,3.98703597,4455.4,4455.3,0.7148]
[1757636375421,3.4358,4455.4,4455.3,0.7148]
[1757636375726,4.1281,4455.4,4455.3,0.7148]
[1757636375922,4.1281,4455.4,4455.0,0.1216]
[1757636376230,3.8336,4455.4,4455.3,0.514]
[1757636376730,4.1281,4455.4,4455.3,0.7148]
[1757636377417,3.9001,4455.4,4455.3,0.7148]
[1757636377620,3.2078,4455.4,4455.3,0.7148]
[1757636377820,3.4058,4455.4,4455.3,0.7148]
[1757636379429,3.7003,4455.4,4455.3,0.7148]
[1757636380624,3.5023,4456.0,4455.3,1.90365174]
[1757636380827,1.24360757,4455.9,4455.8,0.7148]
[1757636381125,1.24360757,4455.9,4455.8,0.2043]
[1757636381331,0.94910757,4455.9,4455.6,41.1097]
[1757636381531,0.6923,4455.8,4455.7,0.5105]
[1757636381737,0.6923,4455.8,4455.7,0.7148]
[1757636382229,0.2945,4455.7,4455.6,40.8]
[1757636382736,0.3978,4455.4,4455.3,0.7148]
[1757636382926,0.6923,4455.4,4455.3,0.7148]
[1757636383230,0.6923,4455.4,4455.3,0.514]
[1757636384732,0.2945,4455.4,4455.0,0.2043]
[1757636384927,0.3978,4455.2,4455.1,0.514]
[1757636385233,0.6923,4455.2,4455.1,0.514]
[1757636385634,0.6923,4455.2,4455.1,0.7148]
[1757636385833,0.198,4455.2,4455.1,0.7148]
[1757636386930,0.6923,4455.2,4455.1,0.7148]
[1757636388532,0.6923,4455.2,4454.8,0.228]
[1757636388533,0.3978,4455.2,4454.8,0.228]
[1757636388836,0.6923,4455.0,4454.9,0.7148]
[1757636390536,0.3978,4455.7,4455.6,0.7148]
[1757636390837,0.94944052,4455.7,4455.6,0.7148]
[1757636391028,0.3978,4455.7,4455.6,0.7148]
[1757636391533,0.6923,4455.7,4455.6,0.7148]
[1757636391740,0.6923,4455.7,4455.6,0.514]
[1757636393736,0.6923,4455.7,4455.6,0.7148]
[1757636394240,3.2078,4456.0,4455.7,0.3097]
[1757636394441,3.4058,4456.0,4455.9,0.7148]
[1757636394641,3.9001,4456.0,4455.9,0.7148]
[1757636399140,0.6923,4456.0,4455.9,0.7148]
[1757636399539,0.198,4456.0,4455.9,0.7148]
[1757636399739,0.198,4456.0,4455.5,0.1216]
[1757636399740,3.2078,4456.6,4456.3,0.695]
[1757636400043,4.1395,4456.6,4456.5,0.695]
[1757636400242,4.69202045,4456.6,4456.5,0.695]
[1757636402139,4.69202045,4456.6,4456.5,0.4999]
[1757636402345,0.4094,4456.3,4456.2,0.4999]
[1757636402543,0.7037,4456.3,4456.2,0.4999]
[1757636404246,0.7037,4456.3,4456.2,0.695]
[1757636404449,0.4094,4456.3,4456.2,41.495]
[1757636404950,0.4094,4456.3,4456.2,0.695]
[1757636405144,0.4094,4456.3,4456.0,0.1227]
[1757636405145,0.2943,4456.2,4455.6,0.3012]
[1757636405352,0.7037,4455.7,4455.6,0.1987]
[1757636405546,0.7037,4455.7,4455.4,0.3012]
[1757636405844,0.4094,4455.7,4455.6,0.1987]
[1757636406054,0.4094,4455.7,4455.6,0.4999]
[1757636406248,0.4094,4455.7,4455.6,0.695]
[1757636406448,0.7037,4455.7,4455.6,0.695]
[1757636406752,0.7037,4455.2,4455.1,41.98885174]
[1757636407255,0.7037,4455.2,4455.1,42.29005174]
[1757636407550,0.7037,4455.6,4455.5,0.4999]
[1757636407845,0.7037,4455.6,4455.5,0.695]
[1757636408046,0.7037,4455.6,4455.5,1.88385174]
[1757636408248,0.2028,4455.6,4455.5,2.00655174]
[1757636408445,0.1248,4456.5,4456.0,0.619]
[1757636408446,0.2028,4456.1,4456.0,0.619]
[1757636408749,0.7037,4456.1,4456.0,0.8177]
[1757636408937,0.2943,4455.9,4455.6,0.3012]
[1757636409142,0.4191,4455.5,4455.2,0.5292]
[1757636409350,0.7037,4455.3,4455.2,0.7279]
[1757636410138,0.7037,4455.3,4455.2,0.923]
[1757636410645,0.5009,4455.2,4455.1,0.4999]
[1757636410857,0.7037,4455.2,4455.1,0.4999]
[1757636411353,0.7037,4455.2,4455.1,0.695]
[1757636411947,3.3326,4455.5,4455.1,0.695]
[1757636411948,3.2078,4455.5,4455.2,0.3012]
[1757636412153,3.4106,4455.5,4455.4,0.695]
[1757636412450,3.9115,4455.5,4455.4,0.695]
[1757636412651,4.0363,4455.5,4455.0,0.1227]
[1757636412947,0.7037,4455.0,4454.9,0.695]
[1757636413960,0.4971,4455.0,4454.9,0.695]
[1757636414248,0.2943,4455.4,4454.9,0.3938]
[1757636414454,3.2078,4455.5,4455.4,0.695]
[1757636414649,0.2028,4455.1,4455.0,0.4239]
[1757636414858,0.7037,4455.1,4455.0,0.8177]
[1757636415246,0.9281,4455.1,4455.0,0.8177]
[1757636416650,0.9281,4455.1,4454.8,40.8]
[1757636416858,0.4094,4454.8,4454.7,3.4368]
[1757636417050,0.7037,4454.8,4454.7,3.4368]
[1757636417553,0.7037,4454.8,4454.7,3.738]
[1757636417751,0.7037,4454.8,4454.7,4.1318]
[1757636417956,0.2028,4454.8,4454.7,4.1318]
[1757636418855,0.2244,4455.1,4454.7,4.1318]
[1757636419057,0.7215,4455.1,4455.0,0.3938]
[1757636419258,0.7215,4455.1,4455.0,0.695]
[1757636419951,0.6338,4455.1,4454.7,3.2078]
[1757636420157,0.4094,4454.8,4454.7,3.4378]
[1757636420359,0.7037,4454.8,4454.7,3.4378]
[1757636421149,0.7037,4454.8,4454.7,3.739]
[1757636421452,0.7037,4454.8,4454.7,3.4378]
[1757636421648,0.7037,4454.8,4454.5,0.23]
[1757636421853,0.7037,4454.8,4454.6,0.3012]
[1757636424565,0.2943,4454.7,4454.6,1.26673784]
[1757636425359,0.7037,4454.7,4454.6,1.46543784]
[1757636425661,0.4094,4454.7,4454.6,1.66053784]
[1757636425861,0.7037,4454.7,4454.6,1.66053784]
[1757636431663,0.2244,4455.1,4455.0,0.8493]
[1757636437067,0.2244,4455.1,4455.0,1.0783]
[1757636437464,0.9408,4455.1,4455.0,0.3178]
[1757636437865,0.4336,4455.1,4455.0,1.81483784]
[1757636438874,0.2244,4455.1,4455.0,1.81483784]
[1757636439277,0.4336,4455.1,4455.0,1.81483784]
[1757636439463,0.7259,4455.1,4455.0,1.81483784]
[1757636440877,0.4336,4455.1,4455.0,1.81483784]
[1757636442165,0.7259,4455.1,4455.0,1.81483784]
[1757636442368,0.2244,4455.1,4455.0,1.81483784]
[1757636442570,0.4336,4455.1,4455.0,1.81483784]
[1757636443375,0.9408,4455.1,4455.0,1.81483784]
[1757636443875,0.4336,4455.1,4455.0,1.81483784]
[1757636444277,0.7259,4455.1,4455.0,1.81483784]
[1757636444476,0.9408,4455.1,4455.0,1.81483784]
[1757636445970,0.2244,4455.1,4455.0,1.81483784]
[1757636447679,3.5001,4456.2,4455.0,1.81483784]
[1757636447875,0.55169421,4456.1,4455.8,0.4101]
[1757636448071,0.55169421,4456.0,4455.9,0.3178]
[1757636448270,0.55169421,4456.0,4455.9,0.7279]
[1757636449179,0.55169421,4456.0,4455.9,1.69343784]
[1757636449478,33.6651877,4457.0,4455.9,1.69343784]
[1757636449479,0.5015,4456.5,4456.4,0.7279]
[1757636449679,0.7164,4456.5,4456.4,0.7279]
[1757636449866,1.26798491,4456.5,4456.4,0.7279]
[1757636450074,0.55158491,4456.5,4456.4,0.7279]
[1757636450278,3.2078,4456.7,4456.6,0.7279]
[1757636450580,3.7093,4456.7,4456.6,1.69343784]
[1757636450768,3.9242,4456.7,4456.6,0.7279]
[1757636450974,3.2078,4457.3,4456.6,0.7279]
[1757636451174,0.7164,4456.9,4456.8,1.69343784]
[1757636453483,0.5015,4456.9,4456.8,1.69343784]
[1757636453877,0.7164,4456.9,4456.8,1.69343784]
[1757636465595,0.3009,4457.2,4456.8,1.37563784]
[1757636465893,3.9186,4457.3,4457.2,1.69663784]
[1757636466687,3.9186,4457.3,4457.2,1.37923784]
[1757636467800,0.4981,4456.7,4456.6,0.7311]
[1757636468004,3.2078,4457.3,4457.1,0.4137]
[1757636468205,0.3009,4457.3,4457.2,1.69663784]
[1757636468404,3.2078,4457.8,4457.2,1.37923784]
[1757636468612,3.2078,4457.8,4457.6,0.4137]
[1757636468904,3.2078,4457.8,4457.7,0.7311]
[1757636469604,0.5299,4458.1,4457.7,0.7311]
[1757636469605,0.3009,4458.1,4457.7,1.37923784]
[1757636469796,3.7059,4458.4,4458.3,0.1984]
[1757636470003,3.7059,4458.4,4458.3,0.7311]
[1757636470206,3.7059,4458.4,4458.3,1.69663784]
[1757636470606,0.4981,4458.4,4458.3,1.69663784]
[1757636471600,0.4981,4458.7,4458.6,0.4137]
[1757636471910,0.4981,4458.7,4458.6,1.69663784]
[1757636472908,0.1182,4459.0,4458.9,0.4137]
[1757636472909,0.3009,4459.0,4458.9,0.4137]
[1757636473103,0.00336447,4459.1,4459.0,0.8591]
[1757636473503,0.50146447,4459.1,4459.0,0.8591]
[1757636474206,0.50146447,4459.1,4459.0,0.7311]
[1757636475107,0.50146447,4459.1,4459.0,1.82463784]
[1757636478500,0.00336447,4459.1,4459.0,1.82463784]
[1757636480511,0.1182,4460.5,4459.5,0.128]
[1757636480709,1.25903437,4460.4,4460.3,0.7311]
[1757636480904,0.228,4460.8,4460.3,1.69663784]
[1757636481108,0.9388,4460.8,4460.7,1.69663784]
[1757636481306,0.7108,4460.8,4460.7,1.69663784]
[1757636481610,0.6379,4461.4,4461.3,0.1984]
[1757636481811,0.86206,4461.4,4461.3,0.1984]
[1757636482109,0.86206,4461.4,4461.1,1.28293784]
[1757636482312,0.7108,4461.3,4461.2,0.7311]
[1757636482612,0.1972,4461.3,4461.2,1.69663784]
[1757636482808,0.3009,4461.6,4461.5,0.4137]
[1757636483112,0.7108,4461.7,4461.6,0.7311]
[1757636485617,0.4981,4461.7,4461.6,0.7311]
[1757636486412,0.3009,4461.9,4461.6,0.4137]
[1757636486615,3.6177,4462.2,4462.1,0.7311]
[1757636487313,3.9186,4462.2,4462.1,0.7311]
[1757636487818,3.9186,4462.2,4462.1,0.7309]
[1757636490719,3.9186,4462.2,4462.1,0.4092]
[1757636491118,0.228,4462.9,4462.0,1.18558126]
[1757636491119,0.3031,4462.9,4462.2,0.3217]
[1757636491317,0.2026,4462.4,4462.3,0.6501]
[1757636491620,0.5057,4462.4,4462.3,42.95738126]
[1757636493624,0.3031,4463.3,4462.5,0.1198]
[1757636493923,0.7127,4462.9,4462.8,0.4221]
[1757636494224,0.7127,4462.4,4462.3,40.8]
[1757636494419,0.7127,4462.4,4462.3,41.028]
[1757636494627,0.7127,4462.4,4462.3,41.3497]
[1757636495322,0.7127,4462.4,4462.3,42.53528126]
[1757636495524,0.5057,4462.7,4462.6,0.7438]
[1757636496718,0.4096,4462.8,4462.7,0.2113]
[1757636496924,0.7127,4462.8,4462.7,0.2113]
[1757636497816,0.7127,4462.8,4462.7,0.533]
[1757636498325,0.7127,4462.8,4462.7,0.7438]
[1757636499127,0.7127,4462.8,4462.7,0.4221]
[1757636500625,0.7127,4462.8,4462.7,0.2113]
[1757636502423,0.7127,4462.8,4462.7,1.92938126]
[1757636503024,0.7127,4462.8,4462.7,1.39688126]
[1757636503326,1.25694401,4462.8,4462.7,0.2113]
[1757636503528,0.7127,4462.7,4462.6,0.2113]
[1757636503727,0.7127,4462.7,4462.6,0.7438]
[1757636505323,1.2574655,4462.7,4462.6,0.2113]
[1757636506222,0.7127,4462.4,4462.3,41.028]
[1757636507323,0.7127,4462.4,4462.3,42.53528126]
[1757636507626,0.7127,4462.8,4462.7,0.4221]
[1757636507828,1.25810253,4462.8,4462.7,0.4221]
[1757636508128,1.25810253,4462.8,4462.7,0.7438]
[1757636508925,1.25810253,4462.8,4462.7,0.7438]
[1757636509526,1.25810253,4462.8,4462.7,0.4221]
[1757636509726,1.25810253,4462.8,4462.7,0.7438]
[1757636510326,1.25810253,4462.8,4462.7,0.4221]
[1757636510525,1.25810253,4462.8,4462.7,0.2113]
[1757636512222,1.25810253,4462.8,4462.4,0.3217]
[1757636512433,0.7127,4462.1,4462.0,0.2113]
[1757636512633,0.7127,4461.9,4461.8,0.4393]
[1757636512936,1.25810253,4461.9,4461.8,41.561]
[1757636513633,1.25810253,4461.9,4461.8,0.9718]
[1757636515926,1.25810253,4461.9,4461.8,0.6501]
[1757636516126,0.3031,4461.8,4461.7,41.028]
[1757636516332,1.25810253,4461.8,4461.7,0.9718]
[1757636516739,1.25810253,4461.8,4461.7,0.7438]
[1757636517038,1.25810253,4461.8,4461.7,0.9718]
[1757636517535,1.05110253,4461.8,4461.7,0.9718]
[1757636518040,0.54540253,4461.8,4461.7,0.9718]
[1757636518238,0.54540253,4462.0,4461.7,0.6501]
[1757636518437,1.05060253,4461.9,4461.8,0.7155]
[1757636520040,0.54540253,4461.9,4461.8,0.93962]
[1757636520233,0.54540253,4462.3,4461.8,0.63302]
[1757636520543,0.54540253,4462.2,4462.1,1.90108126]
[1757636520746,1.05060253,4462.2,4462.1,2.12908126]
[1757636522640,0.54540253,4462.2,4462.1,2.12908126]
[1757636522843,0.54540253,4462.4,4462.1,1.82248126]
[1757636523044,0.54540253,4462.3,4462.1,1.82248126]
[1757636523239,0.5052,4462.5,4462.4,0.7155]
[1757636523444,1.05189733,4462.5,4462.4,0.9435]
[1757636526748,1.25289733,4462.5,4462.4,0.9435]
[1757636528046,1.05189733,4462.5,4462.4,0.9435]
[1757636528843,0.5052,4462.5,4462.4,0.9435]
[1757636529048,0.7062,4462.5,4462.4,0.9435]
[1757636529250,0.8326,4462.5,4462.4,0.9435]
[1757636534551,0.8326,4462.5,4462.4,0.4375]
[1757636535158,0.7062,4462.5,4462.4,0.9435]
[1757636535556,0.5052,4462.5,4462.4,0.9435]
[1757636535862,0.5052,4462.9,4462.8,0.7155]
[1757636536062,1.05187031,4462.9,4462.8,1.90108126]
[1757636537458,1.25287031,4462.9,4462.8,1.90108126]
[1757636537957,0.7062,4462.9,4462.8,1.90108126]
[1757636538463,0.7062,4462.9,4462.8,0.7155]
[1757636538664,0.7062,4462.9,4462.8,1.90108126]
[1757636540960,0.1182,4463.5,4462.8,1.59448126]
[1757636541163,1.25274488,4463.4,4463.3,1.90108126]
[1757636541573,1.25274488,4463.4,4463.3,0.4089]
[1757636541765,1.25274488,4463.4,4463.3,0.7155]
[1757636541968,3.2078,4463.6,4463.5,0.8452]
[1757636542162,0.5052,4463.6,4463.5,5.46658126]
[1757636542369,0.7062,4463.6,4463.5,41.028]
[1757636542865,0.7062,4463.6,4463.5,41.3346]
[1757636544570,3.5113,4464.0,4463.9,0.7155]
[1757636544877,4.0404,4464.0,4463.9,1.90108126]
[1757636545075,4.0404,4464.0,4463.9,0.9435]
[1757636546276,4.0404,4464.0,4463.9,0.7155]
[1757636546476,4.0404,4464.0,4463.9,1.67704751]
[1757636547681,0.8326,4464.0,4463.9,1.67704751]
[1757636549379,0.5207,4464.1,4464.0,0.727]
[1757636549581,0.7286,4464.1,4464.0,0.727]
[1757636550275,0.7286,4464.1,4464.0,0.2142]
[1757636550478,0.7286,4464.1,4464.0,1.17574751]
[1757636550672,0.7286,4464.1,4464.0,1.47974751]
[1757636551979,0.7286,4464.1,4464.0,1.68854751]
[1757636552181,0.313,4464.1,4464.0,1.68854751]
[1757636552373,0.5207,4464.1,4464.0,1.68854751]
[1757636553677,0.7286,4464.1,4464.0,1.68854751]
[1757636557287,0.7286,4464.1,4464.0,1.38454751]
[1757636557482,0.7286,4463.8,4463.7,0.727]
[1757636557683,0.7286,4463.8,4463.7,1.91654751]
[1757636557888,0.7286,4464.4,4464.3,0.2142]
[1757636558091,1.27288356,4464.4,4464.3,1.68854751]
[1757636558589,0.7286,4464.4,4464.3,1.68854751]
[1757636559180,3.3342,4465.0,4464.3,1.68854751]
[1757636559391,0.5207,4464.9,4464.8,0.727]
[1757636559593,0.5207,4464.9,4464.8,1.68854751]
[1757636560086,0.4156,4464.9,4464.8,1.68854751]
[1757636560682,3.2078,4465.0,4464.9,0.304]
[1757636560882,3.2078,4465.0,4464.9,0.727]
[1757636561081,3.5208,4465.0,4464.9,0.727]
[1757636561282,3.7285,4465.0,4464.9,0.727]
[1757636562495,4.0652,4465.0,4464.9,0.423]
[1757636562790,4.0652,4465.0,4464.9,0.727]
[1757636564291,3.7522,4465.0,4464.4,0.304]
[1757636564490,0.7286,4464.2,4464.1,1.17899]
[1757636564694,0.7286,4464.2,4464.1,1.91654751]
[1757636564903,0.5207,4464.2,4464.1,1.91654751]
[1757636565096,0.5207,4464.2,4464.1,2.14055751]
[1757636565297,0.5207,4464.4,4464.3,0.423]
[1757636565595,0.5207,4464.4,4464.3,1.68854751]
[1757636569598,0.7286,4464.5,4464.4,0.727]
[1757636572502,0.8574,4464.5,4464.4,0.727]
[1757636577401,0.8574,4464.0,4463.9,0.2142]
[1757636577603,3.3366,4464.5,4464.3,0.4112]
[1757636577604,0.506,4464.4,4464.3,0.4112]
[1757636577799,0.506,4464.4,4464.3,1.66584751]
[1757636577998,0.7043,4464.4,4464.3,1.66584751]
[1757636579508,0.506,4464.4,4464.3,1.66584751]
[1757636580204,0.2975,4464.7,4464.4,0.2931]
[1757636580399,0.2975,4464.7,4464.3,0.96154751]
[1757636580400,0.2085,4464.7,4464.6,1.66584751]
[1757636581007,0.506,4464.7,4464.6,1.66584751]
[1757636582206,3.3366,4465.0,4464.6,1.66584751]
[1757636582402,3.5451,4465.0,4464.9,1.66584751]
[1757636582802,3.8426,4465.0,4464.9,1.66584751]
[1757636583003,4.0409,4465.0,4464.9,1.66584751]
[1757636583905,4.0409,4465.0,4464.9,1.37274751]
[1757636584206,0.7043,4465.4,4465.3,0.2081]
[1757636584514,1.25295382,4465.4,4465.3,1.16964751]
[1757636585107,1.25295382,4465.4,4465.3,1.46274751]
[1757636586404,1.25295382,4465.4,4465.3,1.66584751]
[1757636587206,3.2078,4466.2,4465.3,5.10164751]
[1757636587419,0.7043,4466.1,4466.0,1.37274751]
[1757636588721,0.7043,4466.1,4466.0,0.96154751]
[1757636589204,0.7043,4466.1,4466.0,1.16964751]
[1757636589910,0.506,4466.1,4466.0,1.66584751]
[1757636590106,3.5053,4466.9,4466.2,0.2931]
[1757636590314,3.7138,4466.9,4466.8,1.66584751]
[1757636590612,3.4163,4466.9,4466.8,1.66584751]
[1757636590814,0.3554,4467.5,4466.8,50.56596502]
[1757636590815,0.1274,4467.5,4466.8,50.56596502]
[1757636591120,0.1274,4467.0,4466.9,0.45186]
[1757636591319,0.1274,4467.0,4466.9,3.65966]
[1757636591814,0.1274,4467.0,4466.9,3.4358]
[1757636592014,0.1274,4467.0,4466.9,3.2078]
[1757636592216,0.1274,4467.5,4466.9,9.35889502]
[1757636592522,0.3359,4468.0,4467.4,4.16934751]
[1757636592819,0.2975,4467.4,4467.2,0.228]
[1757636593014,0.2975,4467.4,4467.3,0.96154751]
[1757636593312,0.1274,4467.5,4467.3,4.39319751]
[1757636593512,0.4249,4468.0,4467.4,0.22383999]
[1757636593710,0.6334,4468.0,4467.9,0.96154751]
[1757636593911,0.6334,4468.0,4467.9,1.18954751]
[1757636594312,0.6334,4468.0,4467.9,41.98954751]
[1757636595115,0.086,4468.7,4467.9,41.98954751]
[1757636595320,0.4249,4468.5,4468.4,0.96154751]
[1757636595616,0.4249,4468.5,4468.4,1.18954751]
[1757636595818,0.2975,4468.4,4468.3,3.2078]
[1757636596117,0.2975,4468.4,4468.3,45.19734751]
[1757636596617,0.2975,4468.4,4468.3,40.8]
[1757636597011,0.2975,4468.4,4468.3,41.76154751]
[1757636598120,0.2975,4468.4,4468.3,44.96934751]
[1757636600822,0.2975,4468.4,4468.3,45.19734751]
[1757636604619,0.2975,4468.7,4468.3,45.19734751]
[1757636604924,0.2975,4468.8,4468.6,0.96154751]
[1757636605120,0.2975,4468.8,4468.7,0.228]
[1757636607226,0.506,4468.8,4468.7,0.228]
[1757636607722,0.2975,4468.8,4468.7,0.228]
[1757636608121,0.17,4468.9,4468.7,0.228]
[1757636608427,0.3106,4468.8,4468.7,0.228]
[1757636608728,0.3106,4468.8,4468.7,44.2358]
[1757636609523,0.3106,4468.8,4468.7,45.41698259]
[1757636611224,0.17,4468.9,4468.7,45.41698259]
[1757636612013,0.3106,4469.2,4468.8,4.0]
[1757636612215,0.3106,4469.4,4469.1,1.18118259]
[1757636612419,0.1274,4470.0,4469.1,1.18118259]
[1757636612420,0.3106,4469.8,4469.3,3.2078]
[1757636612625,0.3106,4469.8,4469.4,0.228]
[1757636612826,0.438,4469.5,4469.4,0.228]
[1757636613124,0.438,4469.5,4469.4,41.028]
[1757636614316,0.1221,4471.0,4469.4,45.028]
[1757636614524,0.4327,4471.0,4470.3,1.18118259]
[1757636614718,0.1221,4471.5,4470.9,4.38898259]
[1757636615025,0.3106,4472.9,4471.4,1.58358259]
[1757636615217,1.1221,4473.0,4472.4,1.18118259]
[1757636615421,0.5128,4472.9,4472.5,0.229]
[1757636615728,0.7258,4472.4,4472.3,0.00335687]
[1757636616030,0.7258,4472.4,4472.3,0.23235687]
[1757636616326,0.7258,4472.4,4472.3,41.03235687]
[1757636616327,0.3106,4472.4,4472.3,41.03235687]
[1757636616524,0.3106,4472.4,4472.3,40.80335687]
[1757636616926,0.3106,4472.4,4472.3,41.03235687]
[1757636617126,0.3106,4472.4,4472.3,44.24015687]
[1757636617621,0.3106,4472.4,4472.3,44.01115687]
[1757636617824,0.3106,4472.4,4472.3,41.03235687]
[1757636618022,0.3106,4472.4,4472.3,44.24015687]
[1757636618226,4.3106,4472.4,4472.3,40.80335687]
[1757636618523,0.4152,4471.3,4471.2,3.6441]
[1757636618821,0.1221,4471.0,4470.7,3.2078]
[1757636619130,0.7258,4470.9,4470.8,0.229]
[1757636619328,0.7258,4470.9,4470.8,41.029]
[1757636619524,4.7258,4470.9,4470.8,40.8]
[1757636619830,0.3106,4470.4,4470.2,0.229]
[1757636620025,0.1221,4470.5,4470.1,3.2078]
[1757636620222,0.3106,4470.3,4470.2,40.8]
[1757636620619,0.1221,4470.5,4470.1,3.2078]
[1757636620819,0.1221,4469.5,4469.1,3.2078]
[1757636621024,0.3106,4469.3,4468.9,0.229]
[1757636621323,0.4327,4469.0,4468.9,41.029]
[1757636621628,0.3106,4468.9,4468.8,0.229]
[1757636621930,0.3106,4468.9,4468.8,41.029]